[Event "SixDays Budapest May IM 2023"]
[Site "Budapest"]
[Date "2023.05.29"]
[Round "4.2"]
[White "Manu David Suthandram R"]
[Black "Nemeth, Zalan"]
[Result "1/2-1/2"]
[Annotator "TA"]
[ECO "B01"]
[WhiteElo "2332"]
[BlackElo "2289"]
[PlyCount "50"]
[EventDate "2023.05.25"]
[EventType "tourn"]
[EventCountry "HUN"]
[SourceTitle "playchess.com"]
[Source "ChessBase"]
[SourceQuality "1"]
[TimeControl "5400+30"]

{[%evp 9,50,33,39,-15,-22,-17,-24,-27,-21,-19,-20,-24,-25,-61,0,-45,-51,-60,-68,-52,-61,-75,-51,-50,-30,-35,-43,-37,-24,-22,-18,-27,-20,-35,-29,-40,-54,-49,-55,-47,-58,-58,-29]} 1. e4 {[%emt 0:09:36]} d5 {[%emt 0:01:19]} 2. exd5 {[%emt 0:00:21]} Qxd5 {[%emt 0:00:04]} 3. Nc3 {[%emt 0:03:21]} Qa5 {[%emt 0:00:05]} 4. g3 {[%emt 0:08:52]} Nf6 {[%emt 0:00:09]} 5. Bg2 {[%emt 0:00:07]} Bg4 {[%emt 0:08:03] [#]} 6. Bf3 $146 {[%emt 0:05:54] B01: Scandinavian Defence.} (6. Nge2 $14 Nc6 7. h3) ({Predecessor:} 6. Nf3 Nc6 7. h3 Bh5 8. Ng1 {½-½ Vasquez Schroder,R (2520)-Munoz Pantoja,M (2367) Santiago de Compostela Bicapawn GP B4 blitz 2022 (9)}) 6... h5 $11 {[%emt 0:07:44]} 7. h3 {[%emt 0:05:57]} Bxf3 {[%emt 0:00:05]} 8. Nxf3 {[%emt 0:00:20] Black has an edge.} Nc6 {[%emt 0:00:06]} 9. d3 {[%emt 0:05:30]} O-O-O {[%emt 0:04:01][%cal Of6e4]} 10. O-O {[%emt 0:02:38]} e6 {[%emt 0:06:44]} (10... Qf5 {looks sharper.} 11. Kg2 e5 12. Bg5 Bc5) 11. Qd2 {[%emt 0:18:40]} Nh7 {[%emt 0:14:45]} (11... Bb4 $15) 12. Ne4 {[%emt 0:09:41]} (12. Qf4 $5 {[%cal Rf4f7]}) 12... Qd5 {[%emt 0:03:01]} 13. Qe3 {[%emt 0:00:50] [#]} h4 $1 {[%emt 0:06:24]} 14. g4 {[%emt 0:06:27]} ({Much worse is} 14. Nxh4 Nd4 15. Nf3 Nxc2 16. Qxa7 Nxa1 $11) 14... f5 {[%emt 0:07:13]} 15. Nc3 {[%emt 0:04:28] [#]} Qd7 {[%emt 0:02:17] Strongly threatening ...fxg4.} 16. g5 {[%emt 0:07:01]} ({Much weaker is} 16. Nxh4 f4 17. Qxf4 g5 $17) 16... e5 {[%emt 0:05:50]} 17. Nxe5 {[%emt 0:03:19]} (17. Nxh4 $2 {too greedy.} f4 18. Qe4 Nxg5 $19) 17... Nxe5 {[%emt 0:00:17]} 18. Qxe5 {[%emt 0:00:05]} Bd6 {[%emt 0:00:11]} 19. Qd5 {[%emt 0:00:07]} f4 {[%emt 0:02:26]} 20. Qg2 {[%emt 0:00:16]} Qf5 {[%emt 0:12:14]} 21. Ne4 {[%emt 0:00:25]} Be7 $1 {[%emt 0:00:01][%cal Rh7g5]} 22. Qg4 {[%emt 0:04:33]} Qxg4+ {[%emt 0:00:01] Black is slightly better.} 23. hxg4 {[%emt 0:00:09]} Nxg5 {[%emt 0:00:02]} 24. Nxg5 {[%emt 0:00:17]} Bxg5 {[%emt 0:00:01]} 25. Re1 {[%emt 0:00:36]} Rhe8 {[%emt 0:06:17] Weighted Error Value: White=0.11 (very precise) /Black=0.04 (flawless)} 1/2-1/2

[Event "SixDays Budapest May IM 2023"]
[Site "Budapest"]
[Date "2023.05.29"]
[Round "4.3"]
[White "Ojas Kulkarni"]
[Black "Tancsa, Tamas"]
[Result "1/2-1/2"]
[Annotator "TA"]
[ECO "C88"]
[WhiteElo "2230"]
[BlackElo "2188"]
[PlyCount "38"]
[EventDate "2023.05.25"]
[EventType "tourn"]
[EventCountry "HUN"]
[SourceTitle "playchess.com"]
[Source "ChessBase"]
[SourceQuality "1"]
[TimeControl "5400+30"]

{[%evp 19,38,14,26,12,21,8,23,16,31,22,32,-5,0,0,27,12,22,17,11,19,56]} 1. e4 {[%emt 0:00:34]} e5 {[%emt 0:00:35]} 2. Nf3 {[%emt 0:00:04]} Nc6 {[%emt 0:00:05]} 3. Bb5 {[%emt 0:00:28][%cal Bf1b5,Bb5a4,Ba4b3][%mdl 32]} a6 {[%emt 0:00:07]} 4. Ba4 {[%emt 0:00:04]} Nf6 {[%emt 0:00:13]} 5. O-O {[%emt 0:00:13]} Be7 {[%emt 0:00:23]} 6. Re1 {[%emt 0:00:07]} b5 {[%emt 0:00:11]} 7. Bb3 {[%emt 0:00:06]} O-O {[%emt 0:00:04]} 8. a4 {[%emt 0:00:12]} b4 {[%emt 0:00:04]} 9. d4 {[%emt 0:00:05]} d6 {[%emt 0:02:09]} 10. dxe5 {[%emt 0:00:08]} dxe5 {[%emt 0:00:12]} 11. Nbd2 {[%emt 0:05:13] C88: Closed Ruy Lopez: Anti-Marshall Systems.} Bc5 {[%emt 0:02:57]} 12. Qe2 {[%emt 0:02:50]} Nd4 {[%emt 0:03:16]} 13. Nxd4 {[%emt 0:05:25] White has an edge.} Bxd4 {[%emt 0:00:05]} 14. Nf3 {[%emt 0:00:33] [#]} Bb7 $146 {[%emt 0:00:30]} ({Predecessor:} 14... Bg4 15. h3 Bxf3 16. Qxf3 h6 17. c3 bxc3 18. bxc3 Bc5 19. a5 Qd6 20. Qe2 Qc6 {1-0 Morozov,D (2453)-Ruiz Jarabo Pelayo,F (2286) W-Cup21 WS11 email 2015}) 15. Nd2 {[%emt 0:09:32]} Qd7 {[%emt 0:03:17]} 16. a5 {[%emt 0:06:07]} Rad8 {[%emt 0:01:37]} 17. Bc4 {[%emt 0:05:37]} Qc6 {[%emt 0:02:55] The position is equal.} 18. Bd3 {[%emt 0:01:59]} Ba7 {[%emt 0:06:05]} 19. h3 {[%emt 0:08:39]} h6 {[%emt 0:12:07] Weighted Error Value: White=0.07 (flawless) /Black=0.08 (flawless)} 1/2-1/2

[Event "SixDays Budapest May IM 2023"]
[Site "Budapest"]
[Date "2023.05.29"]
[Round "4.4"]
[White "Dudognon, Thibault"]
[Black "Semprun Martinez, Fernando"]
[Result "1-0"]
[Annotator "TA"]
[ECO "C45"]
[WhiteElo "2325"]
[BlackElo "2125"]
[PlyCount "120"]
[EventDate "2023.05.25"]
[EventType "tourn"]
[EventCountry "HUN"]
[SourceTitle "playchess.com"]
[Source "ChessBase"]
[SourceQuality "1"]
[TimeControl "5400+30"]

{[%evp 17,120,-6,0,0,0,0,0,0,0,0,0,0,0,0,0,0,20,13,31,18,27,0,0,-66,0,0,0,0,-2,-6,17,16,16,16,18,17,17,17,18,9,12,0,8,8,9,9,16,12,16,16,16,20,18,16,76,76,76,76,76,76,246,272,260,265,363,335,326,279,279,227,928,900,810,787,645,623,1647,1599,1392,1666,2485,1754,2020,1655,5061,4598,29967,29969,29972,29972,29975,29976,29978,29979,29979,29979,29979,29979,29980,29981,29985,29986,29986,29985,29984]} 1. e4 {[%emt 0:05:19]} e5 {[%emt 0:00:32]} 2. Nf3 {[%emt 0:00:05]} Nc6 {[%emt 0:00:09]} 3. d4 {[%emt 0:00:01]} exd4 {[%emt 0:00:16]} 4. Nxd4 {[%emt 0:00:02]} Nf6 {[%emt 0:00:33]} 5. Nxc6 {[%emt 0:00:16]} bxc6 {[%emt 0:00:03]} 6. e5 {[%emt 0:00:04]} Qe7 {[%emt 0:00:19]} 7. Qe2 {[%emt 0:00:03]} Nd5 {[%emt 0:00:09]} 8. c4 {[%emt 0:00:02]} Ba6 {[%emt 0:00:24]} 9. Nd2 {[%emt 0:00:57]} g6 {[%emt 0:00:16]} 10. Nf3 {[%emt 0:00:03] C45: Scotch Game.} Qb4+ {[%emt 0:00:40]} 11. Kd1 {[%emt 0:00:09]} Bg7 {[%emt 0:00:24]} 12. Qd2 {[%emt 0:00:46] The position is equal.} Qxd2+ {[%emt 0:00:02]} 13. Bxd2 {[%emt 0:00:06]} Nb6 {[%emt 0:00:09]} 14. b3 {[%emt 0:00:03]} c5 {[%emt 0:05:35]} 15. Kc2 {[%emt 0:00:03]} O-O {[%emt 0:01:10]} 16. Rd1 {[%emt 0:04:03] [#]} f6 $146 {[%emt 0:06:00]} ({Predecessor:} 16... Rfe8 17. a4 Nc8 18. Be3 d6 19. exd6 cxd6 20. Bf4 Bb7 21. h4 h5 22. Bd3 f5 {½-½ Siefring,C (2499)-Reinhart,K (2464) Berliner Inv A email 2013}) 17. exf6 {[%emt 0:05:45]} Bxf6 {[%emt 0:00:02]} 18. Be3 {[%emt 0:04:35]} (18. Bh6 $5 {[%cal Rh6f8]}) 18... d6 {[%emt 0:00:39]} 19. Be2 {[%emt 0:00:15]} Bb7 {[%emt 0:01:09]} 20. Ne1 {[%emt 0:12:56]} ({White should play} 20. Bd3 $11) 20... Rae8 {[%emt 0:01:32]} (20... Be4+ $15 21. Bd3 Bc6) 21. Bf3 $11 {[%emt 0:00:29]} Be4+ {[%emt 0:02:15]} 22. Bxe4 {[%emt 0:03:40]} Rxe4 {[%emt 0:00:03]} 23. Nf3 {[%emt 0:01:52]} (23. Kd3 {is interesting.} Re6 24. Nf3 d5 25. Rhe1) 23... Nc8 {[%emt 0:03:45]} 24. Rhe1 {[%emt 0:02:02]} Rfe8 {[%emt 0:10:30]} 25. Kd3 {[%emt 0:01:47]} (25. Bd2 {simplifies} Rxe1 26. Rxe1 Kf7 27. Rxe8 Kxe8 28. h3) 25... Kf7 {[%emt 0:03:02]} 26. Bd2 {[%emt 0:01:58]} Rxe1 {[%emt 0:01:25]} 27. Rxe1 {[%emt 0:00:43]} Rxe1 {[%emt 0:00:18]} 28. Bxe1 {[%emt 0:00:06][%mdl 4096] Endgame KBN-KBN} Ke6 {[%emt 0:02:02]} 29. Ba5 {[%emt 0:04:46]} c6 {[%emt 0:01:01]} 30. Bd2 {[%emt 0:00:06]} Kf5 {[%emt 0:05:21]} 31. h3 {[%emt 0:00:12][%cal Bh2h3,Bh3g4,Bg4g5][%mdl 32]} h5 {[%emt 0:00:09]} 32. Nh2 {[%emt 0:01:34]} Bd4 {[%emt 0:03:59]} 33. g4+ {[%emt 0:00:28]} hxg4 {[%emt 0:00:24]} 34. hxg4+ {[%emt 0:00:03]} Ke6 {[%emt 0:00:18]} 35. f4 {[%emt 0:00:23]} d5 {[%emt 0:02:19]} (35... Nb6 $11) 36. Nf3 $16 {[%emt 0:01:48]} Bf6 {[%emt 0:01:59] [#]} 37. Be3 $1 {[%emt 0:00:06]} Kd6 {[%emt 0:01:27]} 38. Bc1 {[%emt 0:10:48]} a5 $2 {[%emt 0:08:59] This costs Black the game.} (38... Ke7 $16 {is a better defense.}) 39. g5 $18 {[%emt 0:12:40]} Bd8 {[%emt 0:02:33]} 40. Ne5 {[%emt 0:01:41]} Ne7 {[%emt 0:01:45]} 41. Nf7+ {[%emt 0:02:10]} Kd7 {[%emt 0:00:01]} 42. Nxd8 {[%emt 0:01:59]} Kxd8 {[%emt 0:00:01] KB-KN} 43. Bd2 {[%emt 0:00:26]} Kc7 $2 {[%emt 0:00:25] [#]} (43... a4 44. bxa4 Kc7) 44. Bxa5+ {[%emt 0:00:06]} Kb7 {[%emt 0:00:02]} 45. Be1 {[%emt 0:01:24]} Nf5 {[%emt 0:05:47]} 46. Bf2 {[%emt 0:00:40]} Kb6 {[%emt 0:00:01]} 47. b4 {[%emt 0:01:15]} d4 {[%emt 0:00:01]} 48. bxc5+ {[%emt 0:00:15]} Kxc5 {[%emt 0:00:01]} 49. a3 {[%emt 0:00:10]} Kb6 {[%emt 0:02:07]} 50. Bxd4+ {[%emt 0:00:06]} Ka5 {[%emt 0:00:01]} 51. Bf2 {[%emt 0:06:01]} Ka4 {[%emt 0:00:09]} 52. c5 {[%emt 0:00:21] White mates.} Kxa3 {[%emt 0:00:32]} 53. Ke4 {[%emt 0:00:19]} Ne7 {[%emt 0:00:47]} 54. Ke5 {[%emt 0:00:05]} Kb4 {[%emt 0:00:21]} 55. Kd6 {[%emt 0:02:22]} Nd5 {[%emt 0:00:20]} 56. Kxc6 {[%emt 0:00:07]} Nxf4 {[%emt 0:00:13]} 57. Kb7 {[%emt 0:03:16]} Ne6 {[%emt 0:00:44]} 58. c6 {[%emt 0:00:05][%cal Bc5c6,Bc6c7][%mdl 32]} Nxg5 {[%emt 0:00:03]} 59. c7 {[%emt 0:00:15]} Ne4 {[%emt 0:00:02]} 60. Kc6 {[%emt 0:00:32]} ({And not} 60. c8=R Nd6+ 61. Kc7 Nxc8 $11) 60... Nxf2 {[%emt 0:00:23] Weighted Error Value: White=0.05 (flawless) /Black=0.27 (precise)} 1-0

[Event "SixDays Budapest May IM 2023"]
[Site "Budapest"]
[Date "2023.05.29"]
[Round "4.5"]
[White "To, Nhat Minh"]
[Black "Arvind Ramnath Iyer"]
[Result "1/2-1/2"]
[Annotator "TA"]
[ECO "B54"]
[WhiteElo "2359"]
[BlackElo "1883"]
[PlyCount "42"]
[EventDate "2023.05.25"]
[EventType "tourn"]
[EventCountry "HUN"]
[SourceTitle "playchess.com"]
[Source "ChessBase"]
[SourceQuality "1"]
[TimeControl "5400+30"]

{[%evp 16,18,43,22,26]} 1. e4 {[%emt 0:00:37]} c5 {[%emt 0:00:34]} 2. Nf3 {[%emt 0:00:07]} d6 {[%emt 0:00:05]} 3. d4 {[%emt 0:00:03]} cxd4 {[%emt 0:00:04]} 4. Nxd4 {[%emt 0:00:03]} Nf6 {[%emt 0:00:06]} 5. f3 {[%emt 0:00:04]} g6 {[%emt 0:00:04]} 6. c4 {[%emt 0:00:06]} Bg7 {[%emt 0:00:07]} 7. Nc3 {[%emt 0:00:06]} O-O {[%emt 0:00:06]} 8. Be3 {[%emt 0:00:03]} Nc6 {[%emt 0:00:04]} 9. Qd2 {[%emt 0:01:11]} Nxd4 {[%emt 0:00:52] [#] Not much happened in this game.  B38: Sicilian: Maroczy Bind with 5...Bg7 and 7...0-0.} {Predecessor:} 10. Bxd4 $146 Be6 11. Be2 Qa5 12. b3 a6 13. a4 Nd7 14. Bxg7 Kxg7 15. Rb1 Qb6 16. Bd1 f5 17. Bc2 Rac8 18. Qf2 Qxf2+ 19. Kxf2 Bxc4 20. bxc4 Rxc4 21. Rxb7 Rxc3 {0-1 Hou,Y (2628)-Vakhidov,J (2607) Astana Satty Zhuldyz Blitz 2023 (19)} 1/2-1/2

[Event "SixDays Budapest May IM 2023"]
[Site "Budapest"]
[Date "2023.05.29"]
[Round "5.1"]
[White "Arvind Ramnath Iyer"]
[Black "Szeberenyi, Adam"]
[Result "1/2-1/2"]
[Annotator "TA"]
[ECO "B40"]
[WhiteElo "1883"]
[BlackElo "2338"]
[PlyCount "62"]
[EventDate "2023.05.25"]
[EventType "tourn"]
[EventCountry "HUN"]
[SourceTitle "playchess.com"]
[Source "ChessBase"]
[SourceQuality "1"]
[TimeControl "5400+30"]

{[%evp 20,62,13,12,15,15,38,0,33,28,54,23,60,0,0,-8,-20,-38,-38,-38,-43,-37,-41,-52,-55,-56,-72,-82,-7,-21,0,-14,0,-69,-52,-82,-75,-79,262,274,263,272,275,266,283]} 1. e4 {[%emt 0:01:24]} c5 {[%emt 0:00:34]} 2. Nf3 {[%emt 0:00:12]} e6 {[%emt 0:00:05]} 3. c3 {[%emt 0:00:04]} Nf6 {[%emt 0:02:22]} 4. e5 {[%emt 0:00:07]} Nd5 {[%emt 0:00:03]} 5. d4 {[%emt 0:00:04]} cxd4 {[%emt 0:00:08]} 6. cxd4 {[%emt 0:00:02]} Nc6 {[%emt 0:01:10]} 7. Bc4 {[%emt 0:00:05]} d6 {[%emt 0:00:21]} 8. O-O {[%emt 0:01:15]} Be7 {[%emt 0:05:28]} 9. Bd2 {[%emt 0:02:24]} O-O {[%emt 0:05:26]} 10. Nc3 {[%emt 0:01:03]} dxe5 {[%emt 0:01:34]} 11. dxe5 {[%emt 0:00:34]} Nb6 {[%emt 0:00:52] B22: Sicilian: 2 c3.} 12. Bb3 {[%emt 0:01:54]} Nd7 {[%emt 0:06:29]} 13. Qe2 {[%emt 0:09:22]} Nc5 {[%emt 0:03:01] The position is equal.} 14. Bc2 {[%emt 0:01:28]} Nb4 {[%emt 0:01:09]} 15. Be3 {[%emt 0:04:55]} Nxc2 {[%emt 0:02:03]} 16. Qxc2 {[%emt 0:00:01]} (16. Rad1 $14 Qe8 17. Qxc2) 16... Qd3 $36 {[%emt 0:03:10][%mdl 2048] [#] Black is more active.} 17. Qc1 $146 {[%emt 0:07:21]} ({Predecessor:} 17. Rac1 b6 18. Rfd1 Qxc2 19. Rxc2 Ba6 20. Rcd2 Nb7 21. Ne4 Rfd8 22. Rd7 {0-1 Gambarini,V-Alonso,N (2107) Birigui U2200 op 1st 2006 (3)}) 17... b6 {[%emt 0:02:13]} 18. Bg5 {[%emt 0:04:23]} f6 {[%emt 0:01:14]} 19. exf6 {[%emt 0:02:21]} gxf6 {[%emt 0:01:00]} 20. Bh6 {[%emt 0:02:59]} Rf7 {[%emt 0:06:56]} 21. Qe3 {[%emt 0:04:48]} Bb7 {[%emt 0:03:59]} (21... Qxe3 {simplifies} 22. Bxe3 Nd3 23. Rab1 e5) 22. Qxd3 {[%emt 0:03:33]} Nxd3 {[%emt 0:00:05]} 23. Nd4 {[%emt 0:00:39]} Nxb2 {[%emt 0:09:32]} ({Black should try} 23... Kh8 $17 {...Rg8 would be deadly.} 24. Nxe6 Rg8) 24. Nxe6 {[%emt 0:00:55]} Rc8 {[%emt 0:00:49]} 25. Nb5 {[%emt 0:07:05]} Bd5 {[%emt 0:18:55]} 26. Nbd4 {[%emt 0:04:46]} (26. Nxa7 $11 Bxe6 27. Nxc8 Bxc8 28. Rab1) 26... Bb4 {[%emt 0:03:51] This pair of bishops is nice.} 27. Rfc1 {[%emt 0:05:54]} Rxc1+ {[%emt 0:01:20]} 28. Rxc1 {[%emt 0:00:02] [#]} Re7 $2 {[%emt 0:00:38][%mdl 8192] This move loses the game for Black.} (28... Rd7 $1 $17 {[%cal Og8f7] keeps the pressure on. Hoping for ...Kf7!} 29. Rc8+ Kf7) 29. Rc8+ $18 {[%emt 0:02:04] White has a decisive advantage.} Kf7 {[%emt 0:00:12] [#]} 30. Rf8+ $1 {[%emt 0:00:22]} Kg6 {[%emt 0:00:02]} 31. Rg8+ {[%emt 0:00:17]} (31. Nf4+ $2 Kxh6 32. Nf5+ Kg5 33. Nxe7 Bxe7 $17) 31... Kf7 {[%mdl 32768] Weighted Error Value: White=0.15 (very precise) /Black=0.31. An unexpected result.} (31... Kxh6 $2 {is a self mate.} 32. Nf5+ Kh5 33. g4#) 1/2-1/2

[Event "SixDays Budapest May IM 2023"]
[Site "Budapest"]
[Date "2023.05.29"]
[Round "5.2"]
[White "Semprun Martinez, Fernando"]
[Black "To, Nhat Minh"]
[Result "0-1"]
[Annotator "TA"]
[ECO "D11"]
[WhiteElo "2125"]
[BlackElo "2359"]
[PlyCount "80"]
[EventDate "2023.05.25"]
[EventType "tourn"]
[EventCountry "HUN"]
[SourceTitle "playchess.com"]
[Source "ChessBase"]
[SourceQuality "1"]
[TimeControl "5400+30"]

{[%evp 9,80,8,25,1,10,-29,-37,-38,-16,-99,-87,-180,-170,-187,-100,-104,-77,-104,-126,-118,-134,-192,-193,-200,-147,-118,-114,-110,-143,-210,-192,-201,-184,-176,-189,-185,-117,-121,-85,-101,-50,-79,-86,-88,-88,-168,-162,-164,-166,-165,-167,-223,-222,-490,-487,-531,-501,-512,-518,-596,-596,-596,-596,-596,-596,-596,-596,-603,-596,-596,-596,-612,-596]} 1. d4 {[%emt 0:00:32]} d5 {[%emt 0:01:55]} 2. c4 {[%emt 0:00:07]} c6 {[%emt 0:00:04]} 3. Nf3 {[%emt 0:00:05]} Nf6 {[%emt 0:00:07]} 4. Qc2 {[%emt 0:00:07]} g6 {[%emt 0:00:27]} 5. Bf4 {[%emt 0:00:29]} Bg7 {[%emt 0:00:24] Black is weak on the dark squares} 6. Nbd2 {[%emt 0:01:54] D11: Slav Defence: 3 Nf3 sidelines and 3...Nf6 4 e3 Bg4.} O-O {[%emt 0:00:18][%cal Oc6c5]} 7. g3 {[%emt 0:04:53] [#]} c5 $146 {[%emt 0:01:23]} ({Predecessor:} 7... Bf5 8. Qb3 Qb6 9. c5 Qxb3 10. axb3 Nbd7 11. h3 Be4 12. Nxe4 dxe4 13. Nd2 Nd5 {½-½ Sfarlog,T (2288)-Foisor,C (2344) Timisoara IM 2008 (5)}) 8. dxc5 {[%emt 0:05:43] Black is slightly better.} Nc6 {[%emt 0:01:39]} 9. Ne5 {[%emt 0:09:56]} (9. Bg2 $11 {remains equal.}) 9... Nh5 $17 {[%emt 0:07:18]} 10. Nxc6 {[%emt 0:05:56]} (10. cxd5 $17 Nxe5 11. Bxe5 Bxe5 12. Bg2) 10... bxc6 $19 {[%emt 0:00:08]} 11. Rd1 {[%emt 0:09:52]} e5 {[%emt 0:03:42]} (11... Nxf4 $19 12. gxf4 Bf5) 12. Be3 $17 {[%emt 0:00:03]} d4 {[%emt 0:03:02][%mdl 1024] Black has strong compensation.} 13. Nb3 {[%emt 0:01:42]} a5 {[%emt 0:02:17][%cal Ba7a5,Ba5a4][%mdl 32]} 14. Bg2 {[%emt 0:01:51]} a4 {[%emt 0:05:02]} 15. Nc1 {[%emt 0:06:01]} (15. Na1 $17) 15... Bf5 {[%emt 0:04:52]} 16. Be4 {[%emt 0:00:19]} Bxe4 {[%emt 0:00:55]} 17. Qxe4 {[%emt 0:00:02]} Qb8 {[%emt 0:02:06]} 18. Bd2 {[%emt 0:01:03]} Qxb2 {[%emt 0:00:19]} 19. O-O {[%emt 0:00:33]} (19. Qxc6 $17 {was called for.} Qc2 20. Nd3) 19... Rac8 $19 {[%emt 0:02:24]} 20. Ba5 {[%emt 0:07:46]} Rfe8 {[%emt 0:04:20]} 21. Rd2 {[%emt 0:01:26]} Qb7 {[%emt 0:01:22]} 22. Qc2 {[%emt 0:01:07]} Qd7 {[%emt 0:03:01]} (22... Ra8 $19 23. Bb6 e4) 23. e3 $17 {[%emt 0:02:29]} Qh3 {[%emt 0:02:49] Hoping for ...Nf6.} 24. exd4 {[%emt 0:00:47]} exd4 {[%emt 0:00:47] Black is more active.} ({Black should try} 24... Nf6 $17 {Strongly threatening ...Ng4.} 25. f3 exd4) 25. Nd3 {[%emt 0:02:08]} Bh6 {[%emt 0:00:49] Black keeps a firm grip on the game.} 26. Re2 {[%emt 0:01:19] [#]} Nf6 $1 $40 {[%emt 0:00:45][%mdl 128] aiming for ...Ng4. Black wants a kill.} 27. Ne1 {[%emt 0:09:08] [#]} (27. Rfe1 $17) 27... Qh5 $1 $19 {[%emt 0:03:36]} (27... Ng4 28. Nf3 $17) ({Not} 27... Rxe2 28. Qxe2 Qf5 29. Nd3 $17) 28. Rxe8+ {[%emt 0:03:20]} Rxe8 {[%emt 0:00:10]} ({Worse is} 28... Nxe8 29. Bb6 $11) 29. Qxa4 {[%emt 0:00:36]} Qxc5 {[%emt 0:02:19]} 30. Nd3 {[%emt 0:01:52]} (30. Bb4 $142 Qxc4 31. Qb3 Qxb3 32. axb3) 30... Qf5 {[%emt 0:02:04]} 31. Rd1 {[%emt 0:00:02]} (31. Nb4 Rc8 32. Nxc6) 31... Ra8 {[%emt 0:01:30] Black is clearly winning.} 32. c5 {[%emt 0:00:01][%cal Oa4d4]} Ne4 {[%emt 0:20:02] White must now prevent ...Nc3.} 33. Qxd4 {[%emt 0:03:00]} Bg7 {[%emt 0:04:38] Repels Bc3} 34. Qa4 {[%emt 0:02:04]} Nc3 {[%emt 0:01:37]} ({And not} 34... Nxc5 35. Nxc5 Qxc5 36. Bb4 Rxa4 37. Bxc5 $11) 35. Qxc6 {[%emt 0:00:40]} Rc8 {[%emt 0:05:35]} 36. Qxc8+ Qxc8 {[%emt 0:00:09]} 37. Bxc3 {[%emt 0:00:08]} Bxc3 {[%emt 0:00:17]} 38. Rc1 {[%emt 0:00:01]} Ba5 {[%emt 0:00:39]} 39. c6 {[%emt 0:01:01]} Qf5 {[%emt 0:02:06]} 40. Nc5 {[%emt 0:04:17]} Bb6 {[%emt 0:02:36] Weighted Error Value: White=0.31/Black=0.12 (very precise)} 0-1

[Event "SixDays Budapest May IM 2023"]
[Site "Budapest"]
[Date "2023.05.29"]
[Round "5.3"]
[White "Tancsa, Tamas"]
[Black "Dudognon, Thibault"]
[Result "1/2-1/2"]
[Annotator "TA"]
[ECO "B51"]
[WhiteElo "2188"]
[BlackElo "2325"]
[PlyCount "43"]
[EventDate "2023.05.25"]
[EventType "tourn"]
[EventCountry "HUN"]
[SourceTitle "playchess.com"]
[Source "ChessBase"]
[SourceQuality "1"]
[TimeControl "5400+30"]

{[%evp 9,30,0,14,0,0,5,0,13,0,19,0,0,0,0,0,0,0,8,0,0,9,0,25]} 1. e4 {[%emt 0:00:33]} c5 {[%emt 0:01:03]} 2. Nf3 {[%emt 0:00:07]} d6 {[%emt 0:00:01]} 3. Bb5+ {[%emt 0:00:13]} Nd7 {[%emt 0:00:03]} 4. O-O {[%emt 0:00:06]} a6 {[%emt 0:00:03]} 5. Bd3 {[%emt 0:00:07]} Ngf6 {[%emt 0:00:03] The position is equal.} 6. Re1 {[%emt 0:00:19] B51: Sicilian: Moscow Variation (3 Bb5+) without 3...Bd7.} e6 {[%emt 0:00:02]} 7. c3 {[%emt 0:00:08]} b5 {[%emt 0:00:02]} 8. Bc2 {[%emt 0:00:30]} c4 {[%emt 0:00:57]} 9. a4 {[%emt 0:00:24]} Bb7 {[%emt 0:00:03]} 10. d4 {[%emt 0:00:03]} cxd3 {[%emt 0:00:07]} 11. Qxd3 {[%emt 0:00:03]} Nc5 {[%emt 0:00:08][%csl LRd3,LRe4]} 12. Qe2 {[%emt 0:00:09]} bxa4 {[%emt 0:00:04]} 13. e5 {[%emt 0:00:17]} dxe5 {[%emt 0:00:30]} 14. Nxe5 {[%emt 0:00:07] Threatening Rxa4.} Qd5 {[%emt 0:00:09][%csl Gb7][%cal Rd5g2] [#]} 15. f3 {[%emt 0:00:35] Threatens to win with Rd1. Active counter play!} Bd6 {[%emt 0:00:59] [#] An uneventful encounter.   Weighted Error Value: White=0.01 (flawless) /Black=0.00 (flawless)} {Predecessor:} 16. Nd2 $146 Nb3 17. Ndc4 Bxe5 18. Nxe5 Nxa1 19. Bxa4+ Ke7 20. b3 Kf8 21. Ba3+ Kg8 22. Rxa1 {½-½ Naumann,A (2562)-Volokitin,A (2623) AUT-chT 1718 2017 (2.5)} 1/2-1/2